{"text_format":"1","workbook":"xlsx","n_sheets":1,"sheets":["Print View"],"not_rendered":{"charts":0,"images":0,"macros":1,"external_links":0,"defined_names":0,"comments":0,"pivot_tables":0},"unopened":[],"bounds":{"document_bytes":16777216,"sheet_cells":100000,"rows_first":2000,"rows_last":500,"rows_between":2000,"halvings":0,"cell_chars":16384,"cell_head_chars":4096},"cells_cut":0,"cells_raw":0,"read":"whole","date_system":"1900"}

{"sheet":"Print View","index":0,"n_rows":63,"n_cols":12,"rows_kept":63,"cut":false,"hidden":false,"merged":[]}
[2025,null,null,null,"Team Name",null,null,{"$f":"IF(COUNTA(D:D)+COUNTA(I:I)-12=0, \"\", COUNTA(D:D)+COUNTA(I:I)-12)","v":""},null,null,"Ready to Print?","League Age Date"]
[null,null,"Name",null,"Phone","Email Address",null,null,null,null,false,"2025-06-01"]
["GPSA Rep:"]
["Coach:"]
[]
[]
["Girls",null,null,null,null,"Boys"]
["6&U",null,null,null,null,{"$f":"A8","v":"6&U"}]
["Last Name, First Name",null,"Age","Date of Birth",null,"Last Name, First Name",null,"Age","Date of Birth"]
[null,null,{"$f":"IF(ISBLANK(D10), \"\", INT(YEARFRAC(D10,$L$2)))","v":""},null,null,null,null,{"$f":"IF(ISBLANK(I10), \"\", INT(YEARFRAC(I10,$L$2)))","v":""}]
[null,null,"",null,null,null,null,""]
[null,null,"",null,null,null,null,""]
[null,null,"",null,null,null,null,""]
[null,null,"",null,null,null,null,""]
[null,null,"",null,null,null,null,""]
["Girls",null,null,null,null,"Boys"]
["2025-07-08",null,null,null,null,{"$f":"A17","v":"2025-07-08"}]
["Last Name, First Name",null,"Age","Date of Birth",null,"Last Name, First Name",null,"Age","Date of Birth"]
[null,null,{"$f":"IF(ISBLANK(D19), \"\", INT(YEARFRAC(D19,$L$2)))","v":""},null,null,null,null,{"$f":"IF(ISBLANK(I19), \"\", INT(YEARFRAC(I19,$L$2)))","v":""}]
[null,null,"",null,null,null,null,""]
[null,null,"",null,null,null,null,""]
[null,null,"",null,null,null,null,""]
[null,null,"",null,null,null,null,""]
[null,null,"",null,null,null,null,""]
["Girls",null,null,null,null,"Boys"]
["2025-09-10",null,null,null,null,{"$f":"A26","v":"2025-09-10"}]
["Last Name, First Name",null,"Age","Date of Birth",null,"Last Name, First Name",null,"Age","Date of Birth"]
[null,null,{"$f":"IF(ISBLANK(D28), \"\", INT(YEARFRAC(D28,$L$2)))","v":""},null,null,null,null,{"$f":"IF(ISBLANK(I28), \"\", INT(YEARFRAC(I28,$L$2)))","v":""}]
[null,null,"",null,null,null,null,""]
[null,null,"",null,null,null,null,""]
[null,null,"",null,null,null,null,""]
[null,null,"",null,null,null,null,""]
[null,null,"",null,null,null,null,""]
["Girls",null,null,null,null,"Boys"]
["2025-11-12",null,null,null,null,{"$f":"A35","v":"2025-11-12"}]
["Last Name, First Name",null,"Age","Date of Birth",null,"Last Name, First Name",null,"Age","Date of Birth"]
[null,null,{"$f":"IF(ISBLANK(D37), \"\", INT(YEARFRAC(D37,$L$2)))","v":""},null,null,null,null,{"$f":"IF(ISBLANK(I37), \"\", INT(YEARFRAC(I37,$L$2)))","v":""}]
[null,null,"",null,null,null,null,""]
[null,null,"",null,null,null,null,""]
[null,null,"",null,null,null,null,""]
[null,null,"",null,null,null,null,""]
[null,null,"",null,null,null,null,""]
["Girls",null,null,null,null,"Boys"]
["13-14",null,null,null,null,{"$f":"A44","v":"13-14"}]
["Last Name, First Name",null,"Age","Date of Birth",null,"Last Name, First Name",null,"Age","Date of Birth"]
[null,null,{"$f":"IF(ISBLANK(D46), \"\", INT(YEARFRAC(D46,$L$2)))","v":""},null,null,null,null,{"$f":"IF(ISBLANK(I46), \"\", INT(YEARFRAC(I46,$L$2)))","v":""}]
[null,null,"",null,null,null,null,""]
[null,null,"",null,null,null,null,""]
[null,null,"",null,null,null,null,""]
[null,null,"",null,null,null,null,""]
[null,null,"",null,null,null,null,""]
["Girls",null,null,null,null,"Boys"]
["15-18",null,null,null,null,{"$f":"A53","v":"15-18"}]
["Last Name, First Name",null,"Age","Date of Birth",null,"Last Name, First Name",null,"Age","Date of Birth"]
[null,null,{"$f":"IF(ISBLANK(D55), \"\", INT(YEARFRAC(D55,$L$2)))","v":""},null,null,null,null,{"$f":"IF(ISBLANK(I55), \"\", INT(YEARFRAC(I55,$L$2)))","v":""}]
[null,null,"",null,null,null,null,""]
[null,null,"",null,null,null,null,""]
[null,null,"",null,null,null,null,""]
[null,null,"",null,null,null,null,""]
[null,null,"",null,null,null,null,""]
["Team Officials"]
["Stroke & Turn",null,null,null,null,"Starter / Referee"]
["Last Name, First Name",null,null,null,null,"Last Name, First Name"]